fUSD/lending_fUSD_20250219
["ID","MTS","AMOUNT","RATE_DAILY","PERIOD"]
[353674658,1739987448420,-728.08,0.00011123,2]
[353674660,1739987448430,-1114.04,0.00011123,2]
[353674662,1739987448441,-892.41,0.00011123,2]
[353674664,1739987448450,-1054.42,0.00011123,2]
[353674666,1739987448460,-1568.95,0.00011123,2]
[353674668,1739987448471,-671.12,0.00011123,2]
[353674670,1739987448482,-782.68,0.00011123,2]
[353674672,1739987448493,-515.12,0.00011123,2]
[353674674,1739987448503,-914.52,0.00011123,2]
[353674676,1739987448513,-416.08504316,0.00011123,2]
[353674685,1739987448522,-500.0,0.00011123,2]
[353674687,1739987448597,-1011.45,0.00011123,2]
[353674689,1739987448607,-1072.02,0.00011123,2]
[353674691,1739987448617,-1097.96,0.00011123,2]
[353674693,1739987448626,-4182.8,0.00011123,2]
[353674695,1739987448637,-500.0,0.00011123,2]
[353674697,1739987448647,-500.0,0.00011123,2]
[353674699,1739987448656,-705.13,0.00011123,2]
[353674701,1739987448665,-1437.68,0.00011123,2]
[353674703,1739987448675,-500.0,0.00011123,2]
[353674705,1739987448684,-795.0,0.00011123,2]
[353674707,1739987448693,-874.82,0.00011123,2]
[353674709,1739987448702,-644.23,0.00011123,2]
[353674710,1739987448711,-1015.54,0.00011123,2]
[353674711,1739987448721,-1039.88,0.00011123,2]
[353674712,1739987448730,-335.34093054,0.00011123,2]
[353674713,1739987448740,-500.0,0.00011123,2]
[353674714,1739987448749,-614.0,0.00011123,2]
[353674715,1739987448758,-1336.31,0.00011123,2]
[353674716,1739987448768,-500.0,0.00011123,2]
[353674717,1739987448777,-500.0,0.00011123,2]
[353674719,1739987448787,-866.14,0.00011123,2]
[353674721,1739987448797,-1003.06,0.00011123,2]
[353674723,1739987448806,-500.0,0.00011123,2]
[353674725,1739987448816,-275.85723107,0.00011123,2]
[353674727,1739987448827,-1114.28,0.00011123,2]
[353674729,1739987448836,-530.87,0.00011123,2]
[353674731,1739987448845,-500.0,0.00011123,2]
[353674733,1739987448855,-1345.04,0.00011123,2]
[353674735,1739987448864,-1022.6,0.00011123,2]
[353674737,1739987448874,-1740.48,0.00011123,2]
[353674739,1739987448883,-500.0,0.00011123,2]
[353674741,1739987448893,-500.0,0.00011123,2]
[353674743,1739987448903,-500.0,0.00011123,2]
[353674745,1739987448912,-998.3,0.00011123,2]
[353674747,1739987448921,-500.0,0.00011123,2]
[353674749,1739987448930,-500.0,0.00011123,2]
[353674750,1739987448939,-1414.34,0.00011123,2]
[353674752,1739987448948,-3066.13,0.00011123,2]
[353674754,1739987448957,-512.06,0.00011123,2]
[353674756,1739987448966,-593.78,0.00011123,2]
[353674758,1739987448975,-1153.26,0.00011123,2]
[353674760,1739987448984,-1550.39,0.00011123,2]
[353674762,1739987448994,-701.17,0.00011123,2]
[353674764,1739987449003,-500.0,0.00011123,2]
[353674766,1739987449012,-500.0,0.00011123,2]
[353674768,1739987449021,-574.37,0.00011123,2]
[353674770,1739987449030,-286.1444404,0.00011142,2]
[353674772,1739987449040,-150.0,0.0001117,2]
[353674774,1739987449050,-150.0,0.0001117,2]
[353674776,1739987449059,-150.0,0.0001117,2]
[353674778,1739987449069,-200.0,0.00011178,2]
[353674780,1739987449078,-26124.17170334,0.000112,2]
[353674782,1739987449088,-503.08,0.00011204,2]
[353674784,1739987449098,-1035.21,0.00011204,2]
[353674786,1739987449108,-500.0,0.00011204,2]
[353674788,1739987449118,-162.03727568,0.00011204,2]
[353674790,1739987449127,-208.24962684,0.00011204,2]
[353674792,1739987449136,-500.0,0.00011204,2]
[353674794,1739987449146,-552.71986263,0.00011204,2]
[353674796,1739987449155,-500.0,0.00011205,2]
[353674797,1739987449164,-500.0,0.00011205,2]
[353674799,1739987449174,-500.0,0.00011205,2]
[353674801,1739987449183,-252.42,0.00011205,2]
[353674803,1739987449193,-645.68,0.00011205,2]
[353674805,1739987449203,-223.42,0.00011205,2]
[353674807,1739987449212,-374.46,0.00011205,2]
[353674809,1739987449222,-500.0,0.00011205,2]
[353674811,1739987449231,-373.13,0.00011205,2]
[353674813,1739987449241,-162.09,0.00011205,2]
[353674815,1739987449251,-200.23,0.00011205,2]
[353674817,1739987449261,-308.02,0.00011205,2]
[353674819,1739987449274,-500.0,0.00011205,2]
[353674821,1739987449283,-342.78993463,0.00011205,2]
[353674823,1739987449293,-500.0,0.00011205,2]
[353674825,1739987449302,-500.0,0.00011205,2]
[353674827,1739987449313,-325.14,0.00011205,2]
[353674829,1739987449323,-614.55,0.00011205,2]
[353674831,1739987449333,-500.0,0.00011205,2]
[353674833,1739987449343,-475.53017397,0.00011205,2]
[353674835,1739987449354,-500.0,0.00011205,2]
[353674837,1739987449364,-500.0,0.00011205,2]
[353674839,1739987449373,-500.0,0.00011205,2]
[353674841,1739987449382,-500.0,0.00011205,2]
[353674843,1739987449392,-813.48,0.00011205,2]
[353674845,1739987449402,-722.46,0.00011205,2]
[353674847,1739987449411,-1116.18,0.00011205,2]
[353674849,1739987449421,-500.0,0.00011205,2]
[353674851,1739987449430,-500.0,0.00011205,2]
[353674853,1739987449440,-500.0,0.00011205,2]
[353674855,1739987449449,-500.0,0.00011205,2]
[353674857,1739987449458,-1001.38,0.00011205,2]
[353674859,1739987449467,-772.23,0.00011205,2]
[353674861,1739987449477,-1129.31,0.00011205,2]
[353674863,1739987449486,-894.25,0.00011205,2]
[353674865,1739987449495,-500.0,0.00011205,2]
[353674867,1739987449504,-1066.3,0.00011205,2]
[353674869,1739987449514,-500.0,0.00011205,2]
[353674871,1739987449523,-1207.63,0.00011205,2]
[353674873,1739987449533,-500.0,0.00011205,2]
[353674875,1739987449542,-523.8,0.00011205,2]
[353674877,1739987449552,-1475.98,0.00011205,2]
[353674879,1739987449561,-355.60943407,0.00011205,2]
[353674881,1739987449571,-707.46,0.00011205,2]
[353674884,1739987449580,-973.42,0.00011205,2]
[353674885,1739987449589,-1708.57,0.00011205,2]
[353674887,1739987449599,-758.41,0.00011205,2]
[353674889,1739987449608,-1055.55,0.00011205,2]
[353674891,1739987449617,-500.0,0.00011205,2]
[353674893,1739987449626,-943.78,0.00011205,2]
[353674895,1739987449636,-500.0,0.00011205,2]
[353674897,1739987449646,-793.53,0.00011205,2]
[353674899,1739987449655,-829.08,0.00011205,2]
[353674901,1739987449664,-500.0,0.00011205,2]
[353674903,1739987449673,-628.54,0.00011205,2]
[353674905,1739987449682,-585.45,0.00011205,2]
[353674907,1739987449692,-673.29,0.00011205,2]
[353674909,1739987449701,-569.52,0.00011205,2]
[353674911,1739987449710,-232.36159158,0.00011205,2]
[353674913,1739987449719,-7470.500642,0.00011205,2]
[353674915,1739987449728,-500.0,0.00011205,2]
[353674917,1739987449739,-551.33,0.00011205,2]
[353674919,1739987449748,-241.012672,0.00011205,2]
[353674921,1739987449757,-500.0,0.00011205,2]
[353674923,1739987449767,-1188.83,0.00011205,2]
[353674925,1739987449776,-500.0,0.00011205,2]
[353674927,1739987449786,-788.62,0.00011205,2]
[353674929,1739987449796,-1971.73,0.00011205,2]
[353674931,1739987449805,-672.32,0.00011205,2]
[353674933,1739987449814,-500.0,0.00011205,2]
[353674935,1739987449824,-500.0,0.00011205,2]
[353674937,1739987449834,-808.29,0.00011205,2]
[353674939,1739987449843,-500.0,0.00011205,2]
[353674941,1739987449853,-720.08,0.00011205,2]
[353674943,1739987449863,-566.48,0.00011205,2]
[353674945,1739987449873,-932.0,0.00011205,2]
[353674947,1739987449883,-537.26,0.00011205,2]
[353674949,1739987449893,-840.91,0.00011205,2]
[353674951,1739987449902,-517.52,0.00011205,2]
[353674953,1739987449912,-662.15,0.00011205,2]
[353674955,1739987449921,-1035.82,0.00011205,2]
[353674957,1739987449931,-1483.43,0.00011205,2]
[353674959,1739987449940,-8580.502287,0.00011205,2]
[353674961,1739987449950,-1154.98,0.00011205,2]
[353674963,1739987449959,-811.37,0.00011205,2]
[353674965,1739987449968,-896.95,0.00011205,2]
[353674967,1739987449977,-1939.26,0.00011205,2]
[353674969,1739987449987,-954.7,0.00011205,2]
[353674971,1739987449997,-753.25,0.00011205,2]
[353674973,1739987450007,-1057.93,0.00011205,2]
[353674975,1739987450016,-1081.88,0.00011205,2]
[353674977,1739987450026,-893.96,0.00011205,2]
[353674979,1739987450037,-500.0,0.00011205,2]
[353674981,1739987450046,-1776.36,0.00011205,2]
[353674983,1739987450056,-1231.15,0.00011205,2]
[353674985,1739987450066,-511.44399271,0.00011205,2]
[353674987,1739987450076,-1082.49,0.00011205,2]
[353674989,1739987450085,-500.0,0.00011205,2]
[353674991,1739987450095,-1074.53,0.00011205,2]
[353674993,1739987450105,-500.0,0.00011205,2]
[353674995,1739987450114,-1842.35,0.00011205,2]
[353674997,1739987450124,-500.0,0.00011205,2]
[353674999,1739987450133,-1188.97,0.00011205,2]
[353675001,1739987450142,-881.03,0.00011205,2]
[353675003,1739987450151,-711.42,0.00011205,2]
[353675004,1739987450160,-819.54,0.00011205,2]
[353675005,1739987450169,-1127.42,0.00011205,2]
[353675006,1739987450178,-744.32,0.00011205,2]
[353675007,1739987450187,-500.0,0.00011205,2]
[353675008,1739987450196,-904.15,0.00011205,2]
[353675009,1739987450205,-500.0,0.00011205,2]
[353675010,1739987450214,-500.0,0.00011205,2]
[353675011,1739987450223,-744.25,0.00011205,2]
[353675013,1739987450232,-1246.08,0.00011205,2]
[353675015,1739987450242,-1227.92,0.00011205,2]
[353675017,1739987450251,-500.0,0.00011205,2]
[353675019,1739987450261,-500.0,0.00011205,2]
[353675021,1739987450275,-664.94,0.00011205,2]
[353675023,1739987450284,-1901.67,0.00011205,2]
[353675025,1739987450294,-500.0,0.00011205,2]
[353675027,1739987450304,-1108.43,0.00011205,2]
[353675029,1739987450314,-500.0,0.00011205,2]
[353675031,1739987450323,-990.17,0.00011205,2]
[353675033,1739987450333,-500.0,0.00011205,2]
[353675035,1739987450343,-1901.78,0.00011205,2]
[353675037,1739987450353,-500.0,0.00011205,2]
[353675039,1739987450364,-1290.72,0.00011205,2]
[353675040,1739987450374,-1736.87,0.00011205,2]
[353675043,1739987450384,-2211.03,0.00011205,2]
[353675044,1739987450394,-2335.41,0.00011205,2]
[353675047,1739987450406,-500.0,0.00011205,2]
[353675049,1739987450415,-812.42,0.00011205,2]
[353675050,1739987450425,-500.0,0.00011205,2]
[353675053,1739987450435,-500.0,0.00011205,2]
[353675054,1739987450445,-1527.63,0.00011205,2]
[353675056,1739987450455,-4591.13,0.00011205,2]
[353675058,1739987450465,-500.0,0.00011205,2]
[353675060,1739987450475,-500.0,0.00011205,2]
[353675062,1739987450484,-1000.0,0.00011205,2]
[353675064,1739987450493,-1566.76,0.00011205,2]
[353675066,1739987450503,-1821.09,0.00011205,2]
[353675068,1739987450513,-955.62,0.00011205,2]
[353675070,1739987450523,-1496.47,0.00011205,2]
[353675073,1739987450535,-500.0,0.00011205,2]
[353675075,1739987450545,-500.0,0.00011205,2]
[353675077,1739987450555,-1307.0,0.00011205,2]
[353675079,1739987450565,-1091.01,0.00011205,2]
[353675081,1739987450576,-500.0,0.00011205,2]
[353675083,1739987450585,-1646.83,0.00011205,2]
[353675085,1739987450595,-500.0,0.00011205,2]
[353675087,1739987450604,-882.64,0.00011205,2]
[353675089,1739987450614,-926.03,0.00011205,2]
[353675091,1739987450623,-513.95,0.00011205,2]
[353675093,1739987450633,-2442.27,0.00011205,2]
[353675095,1739987450644,-500.0,0.00011205,2]
[353675097,1739987450654,-999.95,0.00011205,2]
[353675099,1739987450664,-1684.83,0.00011205,2]
[353675101,1739987450674,-1014.56,0.00011205,2]
[353675103,1739987450683,-1071.28,0.00011205,2]
[353675105,1739987450693,-500.0,0.00011205,2]
[353675107,1739987450703,-1230.45,0.00011205,2]
[353675109,1739987450713,-788.39,0.00011205,2]
[353675111,1739987450722,-500.0,0.00011205,2]
[353675113,1739987450732,-500.0,0.00011205,2]
[353675115,1739987450742,-737.79,0.00011205,2]
[353675117,1739987450752,-500.0,0.00011205,2]
[353675119,1739987450761,-500.0,0.00011205,2]
[353675121,1739987450771,-500.0,0.00011205,2]
[353675123,1739987450783,-1140.37,0.00011205,2]
[353675125,1739987450792,-500.0,0.00011205,2]
[353675127,1739987450802,-1012.93,0.00011205,2]
[353675129,1739987450811,-1541.55,0.00011205,2]
[353675131,1739987450821,-993.33,0.00011205,2]
[353675133,1739987450830,-500.0,0.00011205,2]
[353675135,1739987450840,-947.02,0.00011205,2]
[353675137,1739987450849,-1322.03,0.00011205,2]
[353675139,1739987450859,-752.42,0.00011205,2]
[353675141,1739987450869,-500.0,0.00011205,2]
[353675143,1739987450878,-500.0,0.00011205,2]
[353675145,1739987450888,-1118.2,0.00011205,2]
[353675147,1739987450897,-992.83,0.00011205,2]
[353675149,1739987450906,-1423.73,0.00011205,2]
[353675151,1739987450916,-1072.75,0.00011205,2]
[353675153,1739987450926,-1110.66,0.00011205,2]
[353675155,1739987450935,-500.0,0.00011205,2]
[353675158,1739987450945,-991.44,0.00011205,2]
[353675160,1739987450955,-500.0,0.00011205,2]
[353675162,1739987450965,-734.87,0.00011205,2]
[353675164,1739987450975,-410.24845711,0.00011205,2]
[353675166,1739987450984,-1462.21,0.00011205,2]
[353675168,1739987450993,-506.11,0.00011205,2]
[353675170,1739987451002,-660.15,0.00011205,2]
[353675172,1739987451011,-500.0,0.00011205,2]
[353675174,1739987451021,-500.0,0.00011205,2]
[353675175,1739987451030,-1154.52,0.00011205,2]
[353675177,1739987451040,-500.0,0.00011205,2]
[353675179,1739987451049,-500.0,0.00011205,2]
[353675181,1739987451058,-705.06,0.00011205,2]
[353675183,1739987451068,-694.37,0.00011205,2]
[353675185,1739987451077,-500.0,0.00011205,2]
[353675187,1739987451087,-928.72,0.00011205,2]
[353675189,1739987451097,-840.96,0.00011205,2]
[353675191,1739987451107,-500.0,0.00011205,2]
[353675193,1739987451116,-1357.84,0.00011205,2]
[353675195,1739987451126,-500.0,0.00011205,2]
[353675197,1739987451136,-500.0,0.00011205,2]
[353675199,1739987451145,-1600.63,0.00011205,2]
[353675201,1739987451154,-728.08,0.00011205,2]
[353675203,1739987451164,-1114.04,0.00011205,2]
[353675205,1739987451173,-892.41,0.00011205,2]
[353675208,1739987451184,-1054.42,0.00011205,2]
[353675209,1739987451193,-1568.95,0.00011205,2]
[353675211,1739987451202,-671.12,0.00011205,2]
[353675213,1739987451212,-782.68,0.00011205,2]
[353675216,1739987451222,-515.12,0.00011205,2]
[353675217,1739987451232,-914.52,0.00011205,2]
[353675219,1739987451242,-500.0,0.00011205,2]
[353675221,1739987451251,-1011.45,0.00011205,2]
[353675223,1739987451260,-1072.02,0.00011205,2]
[353675225,1739987451271,-1097.96,0.00011205,2]
[353675227,1739987451283,-4182.8,0.00011205,2]
[353675229,1739987451292,-500.0,0.00011205,2]
[353675231,1739987451301,-268.98927349,0.00011205,2]
[353675233,1739987451311,-705.13,0.00011205,2]
[353675235,1739987451320,-1437.68,0.00011205,2]
[353675237,1739987451329,-500.0,0.00011205,2]
[353675239,1739987451339,-795.0,0.00011205,2]
[353675241,1739987451349,-874.82,0.00011205,2]
[353675243,1739987451359,-644.23,0.00011205,2]
[353675245,1739987451369,-1015.54,0.00011205,2]
[353675247,1739987451378,-1039.88,0.00011205,2]
[353675249,1739987451387,-500.0,0.00011205,2]
[353675251,1739987451397,-614.0,0.00011205,2]
[353675253,1739987451407,-1336.31,0.00011205,2]
[353675255,1739987451416,-500.0,0.00011205,2]
[353675257,1739987451427,-500.0,0.00011205,2]
[353675259,1739987451438,-866.14,0.00011205,2]
[353675261,1739987451448,-1003.06,0.00011205,2]
[353675263,1739987451457,-500.0,0.00011205,2]
[353675265,1739987451467,-1114.28,0.00011205,2]
[353675267,1739987451477,-530.87,0.00011205,2]
[353675269,1739987451486,-500.0,0.00011205,2]
[353675271,1739987451496,-1345.04,0.00011205,2]
[353675273,1739987451506,-1022.6,0.00011205,2]
[353675275,1739987451517,-1740.48,0.00011205,2]
[353675276,1739987451526,-500.0,0.00011205,2]
[353675277,1739987451536,-500.0,0.00011205,2]
[353675278,1739987451545,-998.3,0.00011205,2]
[353675279,1739987451555,-500.0,0.00011205,2]
[353675280,1739987451565,-500.0,0.00011205,2]
[353675281,1739987451575,-1414.34,0.00011205,2]
[353675283,1739987451584,-3066.13,0.00011205,2]
[353675285,1739987451595,-512.06,0.00011205,2]
[353675287,1739987451606,-593.78,0.00011205,2]
[353675289,1739987451617,-1153.26,0.00011205,2]
[353675291,1739987451627,-1550.39,0.00011205,2]
[353675293,1739987451637,-701.17,0.00011205,2]
[353675295,1739987451646,-500.0,0.00011205,2]
[353675297,1739987451657,-500.0,0.00011205,2]
[353675299,1739987451667,-574.37,0.00011205,2]
[353675301,1739987451680,-604.77294542,0.00011236,2]
[353675303,1739987451691,-506.85,0.00011287,2]
[353675305,1739987451700,-500.0,0.00011287,2]
[353675307,1739987451711,-500.0,0.00011287,2]
[353675309,1739987451721,-500.0,0.00011287,2]
[353675311,1739987451731,-500.0,0.00011287,2]
[353675313,1739987451741,-296.7,0.00011287,2]
[353675315,1739987451752,-500.0,0.00011287,2]
[353675318,1739987451762,-499.97006537,0.00011287,2]
[353675320,1739987451772,-500.0,0.00011287,2]
[353675322,1739987451784,-500.0,0.00011287,2]
[353675324,1739987451794,-500.0,0.00011287,2]
[353675326,1739987451803,-813.48,0.00011287,2]
[353675328,1739987451813,-500.0,0.00011287,2]
[353675330,1739987451824,-722.46,0.00011287,2]
[353675332,1739987451833,-1116.18,0.00011287,2]
[353675334,1739987451843,-500.0,0.00011287,2]
[353675335,1739987451853,-500.0,0.00011287,2]
[353675337,1739987451867,-500.0,0.00011287,2]
[353675340,1739987451879,-500.0,0.00011287,2]
[353675341,1739987451888,-1001.38,0.00011287,2]
[353675343,1739987451898,-772.23,0.00011287,2]
[353675345,1739987451907,-1129.31,0.00011287,2]
[353675347,1739987451916,-894.25,0.00011287,2]
[353675349,1739987451925,-500.0,0.00011287,2]
[353675351,1739987451934,-1066.3,0.00011287,2]
[353675353,1739987451943,-500.0,0.00011287,2]
[353675355,1739987451954,-1207.63,0.00011287,2]
[353675357,1739987451963,-500.0,0.00011287,2]
[353675359,1739987451972,-523.8,0.00011287,2]
[353675361,1739987451981,-1475.98,0.00011287,2]
[353675363,1739987451990,-707.46,0.00011287,2]
[353675365,1739987451999,-973.42,0.00011287,2]
[353675367,1739987452009,-1708.57,0.00011287,2]
[353675369,1739987452019,-758.41,0.00011287,2]
[353675371,1739987452028,-1055.55,0.00011287,2]
[353675373,1739987452037,-500.0,0.00011287,2]
[353675375,1739987452047,-943.78,0.00011287,2]
[353675377,1739987452057,-500.0,0.00011287,2]
[353675379,1739987452067,-793.53,0.00011287,2]
[353675381,1739987452076,-829.08,0.00011287,2]
[353675383,1739987452085,-500.0,0.00011287,2]
[353675385,1739987452095,-628.54,0.00011287,2]
[353675387,1739987452105,-585.45,0.00011287,2]
[353675389,1739987452114,-673.29,0.00011287,2]
[353675391,1739987452124,-569.52,0.00011287,2]
[353675393,1739987452133,-500.0,0.00011287,2]
[353675395,1739987452142,-551.33,0.00011287,2]
[353675397,1739987452152,-500.0,0.00011287,2]
[353675399,1739987452161,-1188.83,0.00011287,2]
[353675401,1739987452171,-500.0,0.00011287,2]
[353675403,1739987452180,-788.62,0.00011287,2]
[353675405,1739987452190,-503.08,0.00011287,2]
[353675407,1739987452200,-1971.73,0.00011287,2]
[353675409,1739987452209,-672.32,0.00011287,2]
[353675411,1739987452219,-500.0,0.00011287,2]
[353675413,1739987452228,-500.0,0.00011287,2]
[353675415,1739987452238,-808.29,0.00011287,2]
[353675417,1739987452247,-500.0,0.00011287,2]
[353675419,1739987452255,-720.08,0.00011287,2]
[353675421,1739987452265,-566.48,0.00011287,2]
[353675423,1739987452278,-932.0,0.00011287,2]
[353675425,1739987452288,-537.26,0.00011287,2]
[353675427,1739987452297,-840.91,0.00011287,2]
[353675429,1739987452307,-517.52,0.00011287,2]
[353675431,1739987452317,-662.15,0.00011287,2]
[353675433,1739987452327,-1035.82,0.00011287,2]
[353675435,1739987452336,-1035.21,0.00011287,2]
[353675437,1739987452345,-1483.43,0.00011287,2]
[353675439,1739987452356,-1154.98,0.00011287,2]
[353675441,1739987452365,-811.37,0.00011287,2]
[353675443,1739987452375,-896.95,0.00011287,2]
[353675445,1739987452384,-1939.26,0.00011287,2]
[353675447,1739987452393,-954.7,0.00011287,2]
[353675449,1739987452403,-753.25,0.00011287,2]
[353675451,1739987452412,-1057.93,0.00011287,2]
[353675453,1739987452421,-1081.88,0.00011287,2]
[353675455,1739987452431,-893.96,0.00011287,2]
[353675457,1739987452440,-608.40409748,0.00011287,2]
[353675459,1739987452450,-1776.36,0.00011287,2]
[353675461,1739987452459,-1231.15,0.00011287,2]
[353675463,1739987452468,-1082.49,0.00011287,2]
[353675465,1739987452478,-500.0,0.00011287,2]
[353675467,1739987452487,-1074.53,0.00011287,2]
[353675469,1739987452496,-500.0,0.00011287,2]
[353675471,1739987452505,-1842.35,0.00011287,2]
[353675473,1739987452514,-500.0,0.00011287,2]
[353675475,1739987452524,-1188.97,0.00011287,2]
[353675477,1739987452533,-881.03,0.00011287,2]
[353675479,1739987452542,-711.42,0.00011287,2]
[353675481,1739987452552,-819.54,0.00011287,2]
[353675483,1739987452561,-1127.42,0.00011287,2]
[353675486,1739987452571,-744.32,0.00011287,2]
[353675488,1739987452580,-500.0,0.00011287,2]
[353675489,1739987452589,-904.15,0.00011287,2]
[353675492,1739987452598,-500.0,0.00011287,2]
[353675494,1739987452608,-500.0,0.00011287,2]
[353675496,1739987452618,-744.25,0.00011287,2]
[353675498,1739987452627,-1246.08,0.00011287,2]
[353675500,1739987452637,-1227.92,0.00011287,2]
[353675502,1739987452646,-500.0,0.00011287,2]
[353675504,1739987452655,-500.0,0.00011287,2]
[353675506,1739987452670,-664.94,0.00011287,2]
[353675508,1739987452679,-1901.67,0.00011287,2]
[353675510,1739987452689,-500.0,0.00011287,2]
[353675512,1739987452698,-1108.43,0.00011287,2]
[353675514,1739987452708,-500.0,0.00011287,2]
[353675516,1739987452717,-990.17,0.00011287,2]
[353675518,1739987452727,-500.0,0.00011287,2]
[353675520,1739987452738,-1901.78,0.00011287,2]
[353675522,1739987452747,-500.0,0.00011287,2]
[353675523,1739987452756,-1290.72,0.00011287,2]
[353675524,1739987452764,-2211.03,0.00011287,2]
[353675525,1739987452774,-1736.87,0.00011287,2]
[353675526,1739987452783,-2335.41,0.00011287,2]
[353675527,1739987452793,-500.0,0.00011287,2]
[353675528,1739987452802,-812.42,0.00011287,2]
[353675530,1739987452812,-500.0,0.00011287,2]
[353675532,1739987452822,-500.0,0.00011287,2]
[353675534,1739987452832,-1527.63,0.00011287,2]
[353675536,1739987452842,-4591.13,0.00011287,2]
[353675538,1739987452852,-500.0,0.00011287,2]
[353675540,1739987452862,-500.0,0.00011287,2]
[353675542,1739987452872,-1000.0,0.00011287,2]
[353675544,1739987452881,-1566.76,0.00011287,2]
[353675546,1739987452891,-1821.09,0.00011287,2]
[353675548,1739987452901,-955.62,0.00011287,2]
[353675550,1739987452911,-1496.47,0.00011287,2]
[353675552,1739987452921,-500.0,0.00011287,2]
[353675554,1739987452931,-500.0,0.00011287,2]
[353675556,1739987452941,-1307.0,0.00011287,2]
[353675558,1739987452951,-1091.01,0.00011287,2]
[353675560,1739987452962,-500.0,0.00011287,2]
[353675562,1739987452972,-1646.83,0.00011287,2]
[353675564,1739987452982,-500.0,0.00011287,2]
[353675566,1739987452992,-882.64,0.00011287,2]
[353675568,1739987453002,-926.03,0.00011287,2]
[353675570,1739987453011,-2442.27,0.00011287,2]
[353675572,1739987453020,-513.95,0.00011287,2]
[353675574,1739987453029,-500.0,0.00011287,2]
[353675576,1739987453039,-999.95,0.00011287,2]
[353675578,1739987453049,-1684.83,0.00011287,2]
[353675580,1739987453058,-1014.56,0.00011287,2]
[353675582,1739987453068,-1071.28,0.00011287,2]
[353675584,1739987453078,-500.0,0.00011287,2]
[353675586,1739987453088,-1230.45,0.00011287,2]
[353675588,1739987453098,-788.39,0.00011287,2]
[353675591,1739987453112,-500.0,0.00011287,2]
[353675593,1739987453122,-500.0,0.00011287,2]
[353675595,1739987453132,-737.79,0.00011287,2]
[353675597,1739987453142,-639.73377444,0.00011287,2]
[353675599,1739987453152,-500.0,0.00011287,2]
[353675601,1739987453161,-153.41518013,0.00011287,2]
[353675603,1739987453171,-1140.37,0.00011287,2]
[353675605,1739987453181,-607.94128863,0.00011287,2]
[353675607,1739987453191,-1012.93,0.00011287,2]
[353675609,1739987453201,-1541.55,0.00011287,2]
[353675611,1739987453210,-993.33,0.00011287,2]
[353675613,1739987453220,-500.0,0.00011287,2]
[353675615,1739987453230,-1322.03,0.00011287,2]
[353675617,1739987453240,-947.02,0.00011287,2]
[353675619,1739987453250,-752.42,0.00011287,2]
[353675622,1739987453260,-500.0,0.00011287,2]
[353675624,1739987453270,-500.0,0.00011287,2]
[353675626,1739987453284,-1118.2,0.00011287,2]
[353675628,1739987453294,-992.83,0.00011287,2]
[353675630,1739987453303,-1423.73,0.00011287,2]
[353675632,1739987453315,-1072.75,0.00011287,2]
[353675634,1739987453325,-1110.66,0.00011287,2]
[353675636,1739987453335,-500.0,0.00011287,2]